[Event "Titled Tuesday Blitz December 20 Early 2022"]
[White "Nyambe, Maketo"]
[Black "santosalberto1987"]
[WhiteFideId "8700915"]
[WhiteElo "2091"]
[BlackElo "2495"]
[Result "0-1"]
[Round "10"]
[TimeControl "180+2"]
[Date "2022.12.20"]
[WhiteClock "0:00:01"]
[BlackClock "0:00:07"]

1. e4 {[%clk 0:03:00]}  c5 {[%clk 0:02:54]} 2. Nf3 {[%clk 0:03:00]}  Nc6 {[%clk 0:02:52]} 3. d4 {[%clk 0:03:01]}  cxd4 {[%clk 0:02:52]} 4. Nxd4 {[%clk 0:03:02]}  g6 {[%clk 0:02:52]} 5. c4 {[%clk 0:03:00]}  Nf6 {[%clk 0:02:50]} 6. Nc3 {[%clk 0:03:00]}  d6 {[%clk 0:02:51]} 7. Be2 {[%clk 0:02:57]}  Nxd4 {[%clk 0:02:51]} 8. Qxd4 {[%clk 0:02:57]}  Bg7 {[%clk 0:02:51]} 9. Be3 {[%clk 0:02:56]}  O-O {[%clk 0:02:51]} 10. Qd2 {[%clk 0:02:55]}  Be6 {[%clk 0:02:52]} 11. f3 {[%clk 0:02:50]}  Qa5 {[%clk 0:02:51]} 12. Rc1 {[%clk 0:02:44]}  Rfc8 {[%clk 0:02:51]} 13. b3 {[%clk 0:02:34]}  a6 {[%clk 0:02:51]} 14. Nd5 {[%clk 0:02:13]}  Qxd2+ {[%clk 0:02:52]} 15. Kxd2 {[%clk 0:02:13]}  Nxd5 {[%clk 0:02:47]} 16. cxd5 {[%clk 0:02:12]}  Bd7 {[%clk 0:02:47]} 17. a4 {[%clk 0:02:05]}  f5 {[%clk 0:02:47]} 18. exf5 {[%clk 0:01:39]}  Bxf5 {[%clk 0:02:45]} 19. g4 {[%clk 0:01:28]}  Bd7 {[%clk 0:02:43]} 20. Bd3 {[%clk 0:00:55]}  Rxc1 {[%clk 0:02:37]} 21. Rxc1 {[%clk 0:00:55]}  Rc8 {[%clk 0:02:37]} 22. Rxc8+ {[%clk 0:00:52]}  Bxc8 {[%clk 0:02:38]} 23. b4 {[%clk 0:00:43]}  Kf7 {[%clk 0:02:36]} 24. b5 {[%clk 0:00:27]}  axb5 {[%clk 0:02:33]} 25. axb5 {[%clk 0:00:27]}  e5 {[%clk 0:01:59]} 26. Kc2 {[%clk 0:00:21]}  Bf6 {[%clk 0:01:54]} 27. Kb3 {[%clk 0:00:20]}  Bd8 {[%clk 0:01:55]} 28. Kb4 {[%clk 0:00:19]}  b6 {[%clk 0:01:41]} 29. Be4 {[%clk 0:00:17]}  Ke7 {[%clk 0:01:31]} 30. h4 {[%clk 0:00:15]}  Kf7 {[%clk 0:01:28]} 31. Kc4 {[%clk 0:00:13]}  h5 {[%clk 0:01:24]} 32. gxh5 {[%clk 0:00:11]}  gxh5 {[%clk 0:01:24]} 33. Kc3 {[%clk 0:00:08]}  Bd7 {[%clk 0:01:21]} 34. Bd3 {[%clk 0:00:07]}  Bh3 {[%clk 0:01:14]} 35. Kd2 {[%clk 0:00:07]}  Bc8 {[%clk 0:00:44]} 36. Ke2 {[%clk 0:00:07]}  Bb7 {[%clk 0:00:44]} 37. Be4 {[%clk 0:00:06]}  Kg7 {[%clk 0:00:36]} 38. Kf1 {[%clk 0:00:06]}  Bxh4 {[%clk 0:00:31]} 39. Bxb6 {[%clk 0:00:05]}  Be7 {[%clk 0:00:31]} 40. Kg2 {[%clk 0:00:02]}  Kf6 {[%clk 0:00:29]} 41. Bc7 {[%clk 0:00:02]}  Kg5 {[%clk 0:00:28]} 42. Kg3 {[%clk 0:00:02]}  h4+ {[%clk 0:00:27]} 43. Kg2 {[%clk 0:00:02]}  Kf4 {[%clk 0:00:27]} 44. b6 {[%clk 0:00:03]}  Ke3 {[%clk 0:00:26]} 45. Bb8 {[%clk 0:00:02]}  Kd4 {[%clk 0:00:26]} 46. Bc7 {[%clk 0:00:03]}  Kc5 {[%clk 0:00:26]} 47. Kf2 {[%clk 0:00:02]}  Bg5 {[%clk 0:00:22]} 48. Kg2 {[%clk 0:00:03]}  Bd2 {[%clk 0:00:21]} 49. Kh3 {[%clk 0:00:03]}  Ba5 {[%clk 0:00:21]} 50. Kxh4 {[%clk 0:00:03]}  Bxb6 {[%clk 0:00:22]} 51. Bxb6+ {[%clk 0:00:03]}  Kxb6 {[%clk 0:00:23]} 52. Kg5 {[%clk 0:00:03]}  Kc5 {[%clk 0:00:22]} 53. f4 {[%clk 0:00:03]}  exf4 {[%clk 0:00:20]} 54. Kxf4 {[%clk 0:00:04]}  Bxd5 {[%clk 0:00:20]} 55. Bf5 {[%clk 0:00:05]}  Kd4 {[%clk 0:00:20]} 56. Kg3 {[%clk 0:00:04]}  Ke3 {[%clk 0:00:19]} 57. Kg4 {[%clk 0:00:04]}  Bf3+ {[%clk 0:00:18]} 58. Kg3 {[%clk 0:00:04]}  d5 {[%clk 0:00:17]} 59. Bc2 {[%clk 0:00:04]}  d4 {[%clk 0:00:17]} 60. Bb1 {[%clk 0:00:04]}  Be4 {[%clk 0:00:13]} 61. Ba2 {[%clk 0:00:04]}  d3 {[%clk 0:00:13]} 62. Bb3 {[%clk 0:00:04]}  d2 {[%clk 0:00:12]} 63. Bd1 {[%clk 0:00:04]}  Bd3 {[%clk 0:00:10]} 64. Bb3 {[%clk 0:00:04]}  Be2 {[%clk 0:00:10]} 65. Bc2 {[%clk 0:00:04]}  Kd4 {[%clk 0:00:07]} 66. Kf2 {[%clk 0:00:04]}  Kc3 {[%clk 0:00:08]} 67. Ba4 {[%clk 0:00:03]}  Bd3 {[%clk 0:00:08]} 68. Bd1 {[%clk 0:00:01]}  Kb2 {[%clk 0:00:07]} 0-1


[Site "https://www.chess.com"]

[Event "Titled Tuesday Blitz December 20 Early 2022"]
[White "Oleksandr_Bortnyk"]
[Black "Ordekalog"]
[WhiteElo "2984"]
[BlackElo "2796"]
[Result "1-0"]
[Round "10"]
[TimeControl "180+2"]
[Date "2022.12.20"]
[WhiteClock "0:01:04"]
[BlackClock "0:01:08"]

1. d4 {[%clk 0:03:00]}  d5 {[%clk 0:02:59]} 2. Nc3 {[%clk 0:03:00]}  Nf6 {[%clk 0:02:57]} 3. Bf4 {[%clk 0:03:01]}  c6 {[%clk 0:02:55]} 4. e3 {[%clk 0:03:01]}  Bf5 {[%clk 0:02:54]} 5. Nf3 {[%clk 0:03:01]}  e6 {[%clk 0:02:54]} 6. Ne5 {[%clk 0:03:01]}  Nbd7 {[%clk 0:02:52]} 7. g4 {[%clk 0:03:01]}  Nxe5 {[%clk 0:02:36]} 8. gxf5 {[%clk 0:03:02]}  Nc4 {[%clk 0:02:34]} 9. Bxc4 {[%clk 0:03:00]}  dxc4 {[%clk 0:02:35]} 10. fxe6 {[%clk 0:03:01]}  fxe6 {[%clk 0:02:35]} 11. Bg5 {[%clk 0:02:57]}  Bb4 {[%clk 0:02:32]} 12. Qf3 {[%clk 0:02:39]}  O-O {[%clk 0:02:18]} 13. Rg1 {[%clk 0:02:38]}  Qd5 {[%clk 0:02:12]} 14. Qxd5 {[%clk 0:01:40]}  Nxd5 {[%clk 0:02:11]} 15. Rb1 {[%clk 0:01:35]}  b5 {[%clk 0:02:07]} 16. a3 {[%clk 0:01:33]}  Bxc3+ {[%clk 0:02:07]} 17. bxc3 {[%clk 0:01:34]}  Nxc3 {[%clk 0:02:07]} 18. Ra1 {[%clk 0:01:34]}  Ne4 {[%clk 0:02:07]} 19. Bf4 {[%clk 0:01:34]}  a5 {[%clk 0:01:58]} 20. f3 {[%clk 0:01:34]}  Nc3 {[%clk 0:01:57]} 21. Kd2 {[%clk 0:01:31]}  Nd5 {[%clk 0:01:57]} 22. Be5 {[%clk 0:01:32]}  Ra7 {[%clk 0:01:54]} 23. e4 {[%clk 0:01:31]}  Nb6 {[%clk 0:01:45]} 24. f4 {[%clk 0:01:22]}  Rd7 {[%clk 0:01:36]} 25. c3 {[%clk 0:01:17]}  Na4 {[%clk 0:01:33]} 26. Kc2 {[%clk 0:01:16]}  c5 {[%clk 0:01:27]} 27. Rab1 {[%clk 0:01:12]}  cxd4 {[%clk 0:01:12]} 28. cxd4 {[%clk 0:01:12]}  Rb7 {[%clk 0:01:11]} 29. d5 {[%clk 0:01:04]}  b4 {[%clk 0:01:07]} 30. axb4 {[%clk 0:01:03]}  axb4 {[%clk 0:01:08]} 31. Rxb4 {[%clk 0:01:04]} 1-0


[Site "https://www.chess.com"]

[Event "Titled Tuesday Blitz December 20 Early 2022"]
[White "Pitcher, John"]
[Black "Moh, Teng Keong Deon"]
[WhiteFideId "411485"]
[BlackFideId "5700868"]
[WhiteElo "2210"]
[BlackElo "2215"]
[Result "1-0"]
[Round "10"]
[TimeControl "180+2"]
[Date "2022.12.20"]
[WhiteClock "0:00:09"]
[BlackClock "0:00:03"]

1. e4 {[%clk 0:03:00]}  c6 {[%clk 0:02:56]} 2. d4 {[%clk 0:03:00]}  d5 {[%clk 0:02:57]} 3. e5 {[%clk 0:03:01]}  c5 {[%clk 0:02:56]} 4. dxc5 {[%clk 0:03:01]}  e6 {[%clk 0:02:56]} 5. Be3 {[%clk 0:03:01]}  Nd7 {[%clk 0:02:54]} 6. Bb5 {[%clk 0:03:01]}  Ne7 {[%clk 0:02:54]} 7. Bxd7+ {[%clk 0:03:00]}  Bxd7 {[%clk 0:02:52]} 8. f4 {[%clk 0:02:59]}  Nf5 {[%clk 0:02:47]} 9. Bf2 {[%clk 0:02:59]}  Qa5+ {[%clk 0:02:43]} 10. Qd2 {[%clk 0:02:54]}  Qc7 {[%clk 0:02:36]} 11. b4 {[%clk 0:02:49]}  a5 {[%clk 0:02:35]} 12. c3 {[%clk 0:02:48]}  h5 {[%clk 0:02:35]} 13. Nf3 {[%clk 0:02:46]}  Bb5 {[%clk 0:02:33]} 14. Nd4 {[%clk 0:02:44]}  Nxd4 {[%clk 0:02:30]} 15. Bxd4 {[%clk 0:02:41]}  Be7 {[%clk 0:02:14]} 16. Na3 {[%clk 0:02:31]}  Qc6 {[%clk 0:02:12]} 17. Nxb5 {[%clk 0:02:25]}  Qxb5 {[%clk 0:02:13]} 18. a4 {[%clk 0:02:13]}  Qc4 {[%clk 0:02:09]} 19. Qe2 {[%clk 0:02:08]}  Qxe2+ {[%clk 0:01:39]} 20. Kxe2 {[%clk 0:02:07]}  Kd7 {[%clk 0:01:40]} 21. Rhb1 {[%clk 0:01:57]}  Rhc8 {[%clk 0:01:25]} 22. Kd3 {[%clk 0:01:50]}  h4 {[%clk 0:01:03]} 23. bxa5 {[%clk 0:01:43]}  Kc7 {[%clk 0:00:58]} 24. Rb5 {[%clk 0:01:42]}  Ra6 {[%clk 0:00:54]} 25. Rab1 {[%clk 0:01:40]}  Rb8 {[%clk 0:00:55]} 26. Rb6 {[%clk 0:01:11]}  Rxa5 {[%clk 0:00:40]} 27. c6 {[%clk 0:01:11]}  Bc5 {[%clk 0:00:38]} 28. Rxb7+ {[%clk 0:01:00]}  Rxb7 {[%clk 0:00:38]} 29. Rxb7+ {[%clk 0:00:39]}  Kxc6 {[%clk 0:00:36]} 30. Rxf7 {[%clk 0:00:40]}  Rxa4 {[%clk 0:00:25]} 31. Rxg7 {[%clk 0:00:38]}  Bxd4 {[%clk 0:00:23]} 32. cxd4 {[%clk 0:00:38]}  Ra3+ {[%clk 0:00:24]} 33. Ke2 {[%clk 0:00:37]}  Ra4 {[%clk 0:00:20]} 34. Re7 {[%clk 0:00:29]}  Rxd4 {[%clk 0:00:21]} 35. Rxe6+ {[%clk 0:00:30]}  Kc5 {[%clk 0:00:21]} 36. g3 {[%clk 0:00:23]}  Ra4 {[%clk 0:00:19]} 37. Kf3 {[%clk 0:00:16]}  Ra3+ {[%clk 0:00:14]} 38. Kg4 {[%clk 0:00:16]}  hxg3 {[%clk 0:00:15]} 39. hxg3 {[%clk 0:00:16]}  d4 {[%clk 0:00:13]} 40. Rd6 {[%clk 0:00:16]}  d3 {[%clk 0:00:10]} 41. Kf5 {[%clk 0:00:15]}  Kc4 {[%clk 0:00:07]} 42. g4 {[%clk 0:00:15]}  Ra5 {[%clk 0:00:05]} 43. g5 {[%clk 0:00:13]}  Rd5 {[%clk 0:00:06]} 44. Rc6+ {[%clk 0:00:13]}  Kd4 {[%clk 0:00:02]} 45. Rc1 {[%clk 0:00:10]}  d2 {[%clk 0:00:02]} 46. Rd1 {[%clk 0:00:10]}  Ke3 {[%clk 0:00:03]} 47. g6 {[%clk 0:00:11]}  Rd4 {[%clk 0:00:03]} 48. Rxd2 {[%clk 0:00:09]} 1-0


[Site "https://www.chess.com"]

[Event "Titled Tuesday Blitz December 20 Early 2022"]
[White "SaiHanThiha"]
[Black "Coachpoker"]
[WhiteElo "2429"]
[BlackElo "2626"]
[Result "0-1"]
[Round "10"]
[TimeControl "180+2"]
[Date "2022.12.20"]
[WhiteClock "0:00:02"]
[BlackClock "0:01:33"]

1. d4 {[%clk 0:03:00]}  d5 {[%clk 0:02:59]} 2. c4 {[%clk 0:03:00]}  dxc4 {[%clk 0:03:00]} 3. e3 {[%clk 0:03:00]}  Nf6 {[%clk 0:03:00]} 4. Bxc4 {[%clk 0:03:00]}  e6 {[%clk 0:03:00]} 5. Nf3 {[%clk 0:03:00]}  a6 {[%clk 0:03:00]} 6. O-O {[%clk 0:02:57]}  b5 {[%clk 0:03:00]} 7. Bd3 {[%clk 0:02:57]}  Bb7 {[%clk 0:03:00]} 8. a4 {[%clk 0:02:57]}  b4 {[%clk 0:03:00]} 9. Nbd2 {[%clk 0:02:54]}  Nbd7 {[%clk 0:03:00]} 10. a5 {[%clk 0:02:50]}  c5 {[%clk 0:03:00]} 11. Qe2 {[%clk 0:02:46]}  Be7 {[%clk 0:03:00]} 12. Nc4 {[%clk 0:02:42]}  O-O {[%clk 0:03:00]} 13. Rd1 {[%clk 0:02:42]}  Qc7 {[%clk 0:03:00]} 14. h3 {[%clk 0:02:22]}  Rfd8 {[%clk 0:02:57]} 15. b3 {[%clk 0:02:15]}  Rac8 {[%clk 0:02:57]} 16. Bb2 {[%clk 0:02:13]}  h6 {[%clk 0:02:57]} 17. Rac1 {[%clk 0:02:12]}  Ne4 {[%clk 0:02:53]} 18. Qc2 {[%clk 0:01:57]}  Ndf6 {[%clk 0:02:50]} 19. Nfe5 {[%clk 0:01:56]}  Qb8 {[%clk 0:02:43]} 20. Qe2 {[%clk 0:01:51]}  Rc7 {[%clk 0:02:36]} 21. Nb6 {[%clk 0:01:46]}  cxd4 {[%clk 0:02:32]} 22. Bxd4 {[%clk 0:01:39]}  Nc3 {[%clk 0:02:29]} 23. Bxc3 {[%clk 0:01:38]}  bxc3 {[%clk 0:02:29]} 24. Bxa6 {[%clk 0:01:13]}  Rd2 {[%clk 0:01:55]} 25. Rxd2 {[%clk 0:01:02]}  cxd2 {[%clk 0:01:55]} 26. Rxc7 {[%clk 0:00:38]}  Qxc7 {[%clk 0:01:56]} 27. Qxd2 {[%clk 0:00:15]}  Bxa6 {[%clk 0:01:54]} 28. Nec4 {[%clk 0:00:13]}  Qc5 {[%clk 0:01:51]} 29. b4 {[%clk 0:00:08]}  Qxb4 {[%clk 0:01:49]} 30. Qd4 {[%clk 0:00:06]}  Nd5 {[%clk 0:01:40]} 31. e4 {[%clk 0:00:04]}  Nxb6 {[%clk 0:01:38]} 32. axb6 {[%clk 0:00:03]}  Qxc4 {[%clk 0:01:34]} 33. Qxc4 {[%clk 0:00:01]}  Bxc4 {[%clk 0:01:35]} 34. e5 {[%clk 0:00:02]}  Bd8 {[%clk 0:01:33]} 35. b7 {[%clk 0:00:01]}  Bc7 {[%clk 0:01:34]} 36. f4 {[%clk 0:00:02]}  Bb8 {[%clk 0:01:33]} 0-1


[Site "https://www.chess.com"]

[Event "Titled Tuesday Blitz December 20 Early 2022"]
[White "Steegersee"]
[Black "Tsyhanchuk_Stanislav"]
[WhiteElo "2425"]
[BlackElo "2335"]
[Result "0-1"]
[Round "10"]
[TimeControl "180+2"]
[Date "2022.12.20"]
[WhiteClock "0:00:15"]
[BlackClock "0:00:42"]

1. g3 {[%clk 0:02:57]}  d5 {[%clk 0:02:57]} 2. Bg2 {[%clk 0:02:58]}  e5 {[%clk 0:02:58]} 3. d3 {[%clk 0:02:56]}  Nf6 {[%clk 0:02:57]} 4. Nf3 {[%clk 0:02:56]}  Bd6 {[%clk 0:02:57]} 5. O-O {[%clk 0:02:56]}  O-O {[%clk 0:02:57]} 6. Nc3 {[%clk 0:02:52]}  c6 {[%clk 0:02:56]} 7. e4 {[%clk 0:02:50]}  Be6 {[%clk 0:02:53]} 8. Bg5 {[%clk 0:02:38]}  d4 {[%clk 0:02:51]} 9. Ne2 {[%clk 0:02:36]}  h6 {[%clk 0:02:51]} 10. Bxf6 {[%clk 0:02:21]}  Qxf6 {[%clk 0:02:50]} 11. Nd2 {[%clk 0:02:20]}  Qe7 {[%clk 0:02:23]} 12. f4 {[%clk 0:02:09]}  exf4 {[%clk 0:02:23]} 13. g4 {[%clk 0:02:06]}  Bxg4 {[%clk 0:02:22]} 14. Qe1 {[%clk 0:02:05]}  Qg5 {[%clk 0:02:20]} 15. Kh1 {[%clk 0:02:02]}  c5 {[%clk 0:01:54]} 16. Nf3 {[%clk 0:01:53]}  Bxf3 {[%clk 0:01:51]} 17. Bxf3 {[%clk 0:01:54]}  Nd7 {[%clk 0:01:50]} 18. Rg1 {[%clk 0:01:52]}  Qf6 {[%clk 0:01:50]} 19. Qf2 {[%clk 0:01:21]}  Ne5 {[%clk 0:01:49]} 20. Rg2 {[%clk 0:01:20]}  Nxf3 {[%clk 0:01:48]} 21. Qxf3 {[%clk 0:01:21]}  Be5 {[%clk 0:01:48]} 22. Rf1 {[%clk 0:01:19]}  Rac8 {[%clk 0:01:43]} 23. Nxf4 {[%clk 0:01:18]}  Bxf4 {[%clk 0:01:43]} 24. Qxf4 {[%clk 0:01:19]}  Qxf4 {[%clk 0:01:42]} 25. Rxf4 {[%clk 0:01:19]}  c4 {[%clk 0:01:43]} 26. e5 {[%clk 0:01:10]}  cxd3 {[%clk 0:01:42]} 27. cxd3 {[%clk 0:01:04]}  Rfe8 {[%clk 0:01:41]} 28. Re2 {[%clk 0:01:02]}  Rc5 {[%clk 0:01:39]} 29. Rfe4 {[%clk 0:01:00]}  Re6 {[%clk 0:01:32]} 30. Kg2 {[%clk 0:00:57]}  Rd5 {[%clk 0:01:27]} 31. Kf3 {[%clk 0:00:55]}  g5 {[%clk 0:01:24]} 32. Kg4 {[%clk 0:00:48]}  Kg7 {[%clk 0:01:24]} 33. Kf5 {[%clk 0:00:39]}  Rf6+ {[%clk 0:01:02]} 34. Kg4 {[%clk 0:00:36]}  Re6 {[%clk 0:01:01]} 35. Kf5 {[%clk 0:00:35]}  Rf6+ {[%clk 0:01:00]} 36. Kg4 {[%clk 0:00:34]}  Rb6 {[%clk 0:01:00]} 37. Kf5 {[%clk 0:00:24]}  Ra6 {[%clk 0:00:54]} 38. a3 {[%clk 0:00:23]}  Rf6+ {[%clk 0:00:50]} 39. Kg4 {[%clk 0:00:19]}  Rf1 {[%clk 0:00:50]} 40. e6 {[%clk 0:00:17]}  f5+ {[%clk 0:00:50]} 41. Kg3 {[%clk 0:00:17]}  fxe4 {[%clk 0:00:46]} 42. e7 {[%clk 0:00:17]}  Re5 {[%clk 0:00:45]} 43. Rxe4 {[%clk 0:00:18]}  Rxe4 {[%clk 0:00:43]} 44. dxe4 {[%clk 0:00:15]}  Kf7 {[%clk 0:00:42]} 0-1


[Site "https://www.chess.com"]

[Event "Titled Tuesday Blitz December 20 Early 2022"]
[White "Szpar, Milosz"]
[Black "viditchess"]
[WhiteFideId "1184989"]
[WhiteElo "2447"]
[BlackElo "2986"]
[Result "0-1"]
[Round "10"]
[TimeControl "180+2"]
[Date "2022.12.20"]
[WhiteClock "0:00:14"]
[BlackClock "0:01:06"]

1. e4 {[%clk 0:03:00]}  b6 {[%clk 0:02:56]} 2. d4 {[%clk 0:03:00]}  Bb7 {[%clk 0:02:56]} 3. Bd3 {[%clk 0:03:01]}  e6 {[%clk 0:02:57]} 4. Qe2 {[%clk 0:02:56]}  g6 {[%clk 0:02:55]} 5. h4 {[%clk 0:02:54]}  h6 {[%clk 0:02:55]} 6. f4 {[%clk 0:02:53]}  Bg7 {[%clk 0:02:55]} 7. h5 {[%clk 0:02:51]}  gxh5 {[%clk 0:02:46]} 8. Nf3 {[%clk 0:02:36]}  d6 {[%clk 0:02:43]} 9. f5 {[%clk 0:02:31]}  exf5 {[%clk 0:02:37]} 10. e5 {[%clk 0:02:32]}  dxe5 {[%clk 0:02:29]} 11. dxe5 {[%clk 0:02:18]}  Qe7 {[%clk 0:02:20]} 12. Nc3 {[%clk 0:02:17]}  Nd7 {[%clk 0:02:19]} 13. Bxf5 {[%clk 0:02:12]}  Nxe5 {[%clk 0:02:19]} 14. Bf4 {[%clk 0:01:58]}  Nxf3+ {[%clk 0:02:06]} 15. gxf3 {[%clk 0:01:59]}  Bxf3 {[%clk 0:02:04]} 16. Bd7+ {[%clk 0:01:37]}  Kf8 {[%clk 0:01:56]} 17. Qxe7+ {[%clk 0:01:30]}  Nxe7 {[%clk 0:01:54]} 18. Rf1 {[%clk 0:01:29]}  Bg4 {[%clk 0:01:48]} 19. Bb5 {[%clk 0:01:23]}  c6 {[%clk 0:01:20]} 20. Bc4 {[%clk 0:01:23]}  Nf5 {[%clk 0:01:20]} 21. Kf2 {[%clk 0:01:12]}  Bd4+ {[%clk 0:01:20]} 22. Kg2 {[%clk 0:01:13]}  Rg8 {[%clk 0:01:19]} 23. Kh2 {[%clk 0:01:13]}  Re8 {[%clk 0:01:19]} 24. Rae1 {[%clk 0:00:57]}  Rxe1 {[%clk 0:01:15]} 25. Rxe1 {[%clk 0:00:58]}  Bf3 {[%clk 0:01:15]} 26. Rf1 {[%clk 0:00:50]}  Bg2 {[%clk 0:01:10]} 27. Re1 {[%clk 0:00:47]}  Rg4 {[%clk 0:01:09]} 28. Bb8 {[%clk 0:00:28]}  Bf3 {[%clk 0:01:07]} 29. Bf1 {[%clk 0:00:15]}  Bg1+ {[%clk 0:01:05]} 30. Kh3 {[%clk 0:00:14]}  Rh4# {[%clk 0:01:06]} 0-1


[Site "https://www.chess.com"]

[Event "Titled Tuesday Blitz December 20 Early 2022"]
[White "Toh, Terry"]
[Black "CristobalBlanco"]
[WhiteFideId "5800323"]
[WhiteElo "2394"]
[BlackElo "2476"]
[Result "1/2-1/2"]
[Round "10"]
[TimeControl "180+2"]
[Date "2022.12.20"]
[WhiteClock "0:00:53"]
[BlackClock "0:00:19"]

1. c4 {[%clk 0:02:59]}  e6 {[%clk 0:02:57]} 2. Nc3 {[%clk 0:02:56]}  d5 {[%clk 0:02:57]} 3. d4 {[%clk 0:02:56]}  Nf6 {[%clk 0:02:57]} 4. Nf3 {[%clk 0:02:56]}  dxc4 {[%clk 0:02:56]} 5. e3 {[%clk 0:02:55]}  c5 {[%clk 0:02:50]} 6. Bxc4 {[%clk 0:02:55]}  a6 {[%clk 0:02:50]} 7. a4 {[%clk 0:02:54]}  Nc6 {[%clk 0:02:48]} 8. O-O {[%clk 0:02:54]}  cxd4 {[%clk 0:02:31]} 9. exd4 {[%clk 0:02:53]}  Be7 {[%clk 0:02:32]} 10. Bg5 {[%clk 0:02:53]}  h6 {[%clk 0:02:30]} 11. Bh4 {[%clk 0:02:52]}  Nb4 {[%clk 0:02:30]} 12. Re1 {[%clk 0:02:52]}  O-O {[%clk 0:02:29]} 13. Qe2 {[%clk 0:02:52]}  Re8 {[%clk 0:02:21]} 14. Ne5 {[%clk 0:02:51]}  Nbd5 {[%clk 0:02:19]} 15. Rac1 {[%clk 0:02:45]}  Bd7 {[%clk 0:02:15]} 16. Qf3 {[%clk 0:02:33]}  Nxc3 {[%clk 0:02:12]} 17. bxc3 {[%clk 0:02:33]}  b5 {[%clk 0:02:07]} 18. axb5 {[%clk 0:02:31]}  axb5 {[%clk 0:02:04]} 19. Bd3 {[%clk 0:02:15]}  Ra3 {[%clk 0:02:02]} 20. Bb1 {[%clk 0:02:12]}  b4 {[%clk 0:01:56]} 21. Qd3 {[%clk 0:02:11]}  Rxc3 {[%clk 0:01:53]} 22. Rxc3 {[%clk 0:02:10]}  bxc3 {[%clk 0:01:53]} 23. Qxc3 {[%clk 0:02:00]}  Nd5 {[%clk 0:01:43]} 24. Qd3 {[%clk 0:01:58]}  Bxh4 {[%clk 0:01:32]} 25. Qh7+ {[%clk 0:01:56]}  Kf8 {[%clk 0:01:32]} 26. Qh8+ {[%clk 0:01:56]}  Ke7 {[%clk 0:01:32]} 27. Qxg7 {[%clk 0:01:56]}  Rf8 {[%clk 0:01:24]} 28. Ng6+ {[%clk 0:01:52]}  Kd6 {[%clk 0:01:22]} 29. Qxf8+ {[%clk 0:01:52]}  Qxf8 {[%clk 0:01:20]} 30. Nxf8 {[%clk 0:01:52]}  Bb5 {[%clk 0:01:17]} 31. g3 {[%clk 0:01:46]}  Be7 {[%clk 0:01:17]} 32. Nh7 {[%clk 0:01:46]}  Nc3 {[%clk 0:01:17]} 33. Bc2 {[%clk 0:01:45]}  Ne2+ {[%clk 0:01:01]} 34. Kg2 {[%clk 0:01:44]}  Nxd4 {[%clk 0:01:02]} 35. Rd1 {[%clk 0:01:42]}  Kc5 {[%clk 0:01:00]} 36. Bb1 {[%clk 0:01:40]}  Bc6+ {[%clk 0:00:57]} 37. Kf1 {[%clk 0:01:36]}  Nf3 {[%clk 0:00:51]} 38. h4 {[%clk 0:01:34]}  Kb6 {[%clk 0:00:43]} 39. Rc1 {[%clk 0:01:31]}  Nh2+ {[%clk 0:00:41]} 40. Kg1 {[%clk 0:01:30]}  Nf3+ {[%clk 0:00:41]} 41. Kf1 {[%clk 0:01:31]}  Bc5 {[%clk 0:00:39]} 42. Bd3 {[%clk 0:01:15]}  Be7 {[%clk 0:00:37]} 43. Rxc6+ {[%clk 0:01:12]}  Kxc6 {[%clk 0:00:34]} 44. Be4+ {[%clk 0:01:12]}  Kd6 {[%clk 0:00:34]} 45. Bxf3 {[%clk 0:01:12]}  Ke5 {[%clk 0:00:35]} 46. Ke2 {[%clk 0:01:07]}  Kf5 {[%clk 0:00:34]} 47. Ke3 {[%clk 0:01:05]}  Kg6 {[%clk 0:00:34]} 48. Be4+ {[%clk 0:01:06]}  f5 {[%clk 0:00:34]} 49. Bd3 {[%clk 0:01:03]}  Kxh7 {[%clk 0:00:34]} 50. g4 {[%clk 0:01:02]}  Kg6 {[%clk 0:00:34]} 51. gxf5+ {[%clk 0:01:01]}  exf5 {[%clk 0:00:34]} 52. h5+ {[%clk 0:00:54]}  Kg5 {[%clk 0:00:31]} 53. f4+ {[%clk 0:00:54]}  Kg4 {[%clk 0:00:23]} 54. Be2+ {[%clk 0:00:53]}  Kh4 {[%clk 0:00:22]} 55. Bd3 {[%clk 0:00:52]}  Kg4 {[%clk 0:00:21]} 56. Be2+ {[%clk 0:00:52]}  Kh4 {[%clk 0:00:21]} 57. Bd3 {[%clk 0:00:52]}  Kxh5 {[%clk 0:00:20]} 58. Bxf5 {[%clk 0:00:52]}  Bd6 {[%clk 0:00:21]} 59. Kf3 {[%clk 0:00:52]}  Bxf4 {[%clk 0:00:19]} 60. Kxf4 {[%clk 0:00:52]}  Kh4 {[%clk 0:00:19]} 61. Bg4 {[%clk 0:00:52]}  h5 {[%clk 0:00:19]} 62. Bxh5 {[%clk 0:00:53]} 1/2-1/2


[Site "https://www.chess.com"]

[Event "Titled Tuesday Blitz December 20 Early 2022"]
[White "Truequitos"]
[Black "Canche Cab, Marco Alexei"]
[BlackFideId "5116139"]
[WhiteElo "2536"]
[BlackElo "2004"]
[Result "1-0"]
[Round "10"]
[TimeControl "180+2"]
[Date "2022.12.20"]
[WhiteClock "0:00:03"]
[BlackClock "0:00:03"]

1. Nf3 {[%clk 0:03:00]}  Nf6 {[%clk 0:03:00]} 2. g4 {[%clk 0:03:00]}  Nxg4 {[%clk 0:03:00]} 3. e4 {[%clk 0:03:00]}  c5 {[%clk 0:02:42]} 4. d4 {[%clk 0:02:55]}  cxd4 {[%clk 0:02:33]} 5. Nxd4 {[%clk 0:02:56]}  Nf6 {[%clk 0:02:33]} 6. Nc3 {[%clk 0:02:53]}  d6 {[%clk 0:02:31]} 7. Rg1 {[%clk 0:02:50]}  g6 {[%clk 0:02:25]} 8. Be3 {[%clk 0:02:50]}  Bg7 {[%clk 0:02:24]} 9. Qd2 {[%clk 0:02:49]}  O-O {[%clk 0:02:04]} 10. Bh6 {[%clk 0:02:45]}  Nc6 {[%clk 0:01:52]} 11. Bxg7 {[%clk 0:02:21]}  Kxg7 {[%clk 0:01:53]} 12. O-O-O {[%clk 0:02:21]}  Nxd4 {[%clk 0:01:43]} 13. Qxd4 {[%clk 0:02:22]}  Qb6 {[%clk 0:01:42]} 14. Qxb6 {[%clk 0:02:01]}  axb6 {[%clk 0:01:43]} 15. a3 {[%clk 0:02:01]}  Bd7 {[%clk 0:01:39]} 16. f4 {[%clk 0:02:01]}  Bc6 {[%clk 0:01:35]} 17. e5 {[%clk 0:02:00]}  dxe5 {[%clk 0:01:33]} 18. fxe5 {[%clk 0:02:01]}  Nd7 {[%clk 0:01:33]} 19. Re1 {[%clk 0:01:53]}  e6 {[%clk 0:01:18]} 20. Rg4 {[%clk 0:01:39]}  Ra5 {[%clk 0:01:15]} 21. Rb4 {[%clk 0:01:28]}  Rxe5 {[%clk 0:01:04]} 22. Rxe5 {[%clk 0:01:27]}  Nxe5 {[%clk 0:01:05]} 23. Rxb6 {[%clk 0:01:26]}  f5 {[%clk 0:01:00]} 24. a4 {[%clk 0:01:19]}  f4 {[%clk 0:00:47]} 25. a5 {[%clk 0:00:52]}  Nd7 {[%clk 0:00:39]} 26. Rb4 {[%clk 0:00:51]}  f3 {[%clk 0:00:35]} 27. Rc4 {[%clk 0:00:39]}  Ne5 {[%clk 0:00:23]} 28. Rc5 {[%clk 0:00:38]}  Ng4 {[%clk 0:00:22]} 29. a6 {[%clk 0:00:29]}  Nxh2 {[%clk 0:00:21]} 30. axb7 {[%clk 0:00:26]}  Bxb7 {[%clk 0:00:22]} 31. Bh3 {[%clk 0:00:21]}  f2 {[%clk 0:00:20]} 32. b4 {[%clk 0:00:20]}  Rf3 {[%clk 0:00:10]} 33. Nd1 {[%clk 0:00:20]}  Bd5 {[%clk 0:00:07]} 34. c4 {[%clk 0:00:18]}  Be4 {[%clk 0:00:06]} 35. Nxf2 {[%clk 0:00:17]}  Rxf2 {[%clk 0:00:05]} 36. Bxe6 {[%clk 0:00:17]}  Nf3 {[%clk 0:00:05]} 37. Bd5 {[%clk 0:00:16]}  Bxd5 {[%clk 0:00:04]} 38. Rxd5 {[%clk 0:00:13]}  h5 {[%clk 0:00:04]} 39. b5 {[%clk 0:00:13]}  Nh2 {[%clk 0:00:03]} 40. b6 {[%clk 0:00:12]}  Ng4 {[%clk 0:00:03]} 41. Rd7+ {[%clk 0:00:07]}  Kh6 {[%clk 0:00:03]} 42. c5 {[%clk 0:00:06]}  h4 {[%clk 0:00:02]} 43. b7 {[%clk 0:00:06]}  Rf8 {[%clk 0:00:02]} 44. c6 {[%clk 0:00:06]}  h3 {[%clk 0:00:02]} 45. Rd3 {[%clk 0:00:05]}  Nf2 {[%clk 0:00:01]} 46. Rxh3+ {[%clk 0:00:04]}  Nxh3 {[%clk 0:00:02]} 47. c7 {[%clk 0:00:05]}  g5 {[%clk 0:00:03]} 48. c8=Q {[%clk 0:00:05]}  Rf1+ {[%clk 0:00:03]} 49. Kd2 {[%clk 0:00:05]}  Rf2+ {[%clk 0:00:03]} 50. Ke3 {[%clk 0:00:05]}  Rh2 {[%clk 0:00:03]} 51. Qh8+ {[%clk 0:00:03]}  Kg6 {[%clk 0:00:03]} 52. b8=Q {[%clk 0:00:03]} 1-0


[Site "https://www.chess.com"]